Cogmind - Beta 15 @@@ ROGUE MODE // 2025.08.29 @ 11:25:00 Player: BadFPS Result: Destroyed by J9-SUZ(R) with Subdweller Machine Gun Performance ------------- Evolutions (0) 0 Regions Visited (3) 600 Robots Destroyed (22) 110 Value Destroyed (548) 548 Prototype IDs (0) 0 Alien Tech Used (0) 0 Bonus (-21) -21 TOTAL SCORE: 1237 Bonus ------- Friendly Fire -21 Cogmind --------- Core Integrity 0/250 Matter 300/300 Energy 100/100 System Corruption 0% Temperature Cool (6) Movement Core (100) Ox1 Location -10/Subcaves Parts ------- > --- POWER (1) -------- (None) > --- PROPULSION (2) --- (None) > --- UTILITY (2) ------ Small Storage Unit > --- WEAPON (2) ------- (None) > --- INVENTORY (8) ---- Subdweller Power Source Subdweller Monowheel Improved Heat Sink Sensor Array Medium Armor Plating Scrap Shield Peak State ------------ > --- POWER ------------ Reinforced Ion Engine > --- PROPULSION ------- Light Treads Light Treads > --- UTILITY ---------- Small Storage Unit Signal Interpreter > --- WEAPON ----------- Improved Light Cannon Improved Light Cannon > --- INVENTORY -------- Aluminum Leg Aluminum Leg Sensor Array Medium Armor Plating Medium Laser Particle Gun Grenade Launcher Mining Laser [Rating: 11] Favorites ----------- Power Ion Engine Engine Ion Engine Propulsion Light Treads Treads Light Treads Leg Aluminum Leg Utility Small Storage Unit Device Seismic Detector Storage Small Storage Unit Processor Signal Interpreter Weapon Improved Light Cannon Energy Gun EM Pulse Gun Ballistic Gun Heavy Assault Rifle Ballistic Cannon Improved Light Cannon Launcher Grenade Launcher Special Weapon Mining Laser Build | -11 -10 -10 -10 ------- Run | Yrd Mat Min Sub Slots Evolved . | . . . . Power . | . . . . Propulsion . | . . . . Utility . | . . . . Weapon . | . . . . Parts Attached 24 | 7 14 . 3 Power 3 | 1 2 . . Engine 3 | 1 2 . . Core . | . . . . Reactor . | . . . . Propulsion 6 | 2 4 . . Treads 4 | . 4 . . Leg 2 | 2 . . . Wheel . | . . . . Hover . | . . . . Flight . | . . . . Utility 4 | 2 2 . . Device 1 | 1 . . . Storage 1 | 1 . . . Processor 2 | . 2 . . Hackware . | . . . . Protection . | . . . . Artifact . | . . . . Weapon 11 | 2 6 . 3 Energy Gun 3 | 1 . . 2 Energy Cannon . | . . . . Ballistic Gun 4 | 1 3 . . Ballistic Cannon 2 | . 2 . . Launcher 1 | . . . 1 Special Weapon 1 | . 1 . . Impact Weapon . | . . . . Slashing Weapon . | . . . . Piercing Weapon . | . . . . Special Melee Weapon . | . . . . Unidentified Prototypes . | . . . . Parts Lost 7 | . . . 7 Power 1 | . . . 1 Propulsion 2 | . . . 2 Utility 1 | . . . 1 Weapon 3 | . . . 3 Highest Loss Streak 7 | . . . 7 To Critical Strikes 1 | . . . 1 Average Backups 7 | 2 7 7 7 Power . | . . . . Propulsion 1 | 1 2 2 1 Utility 1 | . 1 2 3 Weapon 3 | . 3 3 1 Tool/Special . | . . . . Unused Backups 10 | . 3 1 6 Power 2 | . 1 . 1 Propulsion 1 | . . . 1 Utility 4 | . . . 4 Weapon 3 | . 2 1 . Tool/Special . | . . . . Average Slot Usage (%) 99 | . 99 100 97 Engine 14 | . 14 14 14 Treads 19 | . 15 28 27 Leg 8 | . 12 . . Device 4 | . 6 . . Storage 14 | . 14 14 14 Processor 9 | . 7 14 13 Energy Gun 5 | . 6 . 10 Ballistic Gun 11 | . 15 . . Ballistic Cannon 9 | . 5 28 8 Launcher 1 | . . . 7 Peak Build Rating 11 | 7 10 11 11 Average Rating 8 | 5 8 10 9 On Entrance 7 | . 7 10 11 Naked Turns . | . . . . Heaviest Build 23 | 14 23 23 23 Greatest Support 40 | 20 40 40 40 Greatest Overweight (x) 1 | . 1 . 1 Average Overweight (x) . | . . . . Largest Inventory Capacity 8 | 8 8 8 8 Average Capacity 7 | 7 8 8 8 Most Carried 8 | 5 8 8 8 Average Carried 7 | 2 7 7 7 Final Capacity 8 | 8 8 8 8 Final Carried 8 | 5 8 8 7 Class Distribution -------------------- 100% | Mutant Dominant Class ---------------- Mutant | -10/Materials Mutant | -10/Mines Mutant | -10/Subcaves Resources | -11 -10 -10 -10 ----------- Run | Yrd Mat Min Sub Matter Collected 735 | 270 318 72 75 Remotely . | . . . . Salvage Created 869 | 82 518 101 168 Parts 41 | 7 23 5 6 Haulers Intercepted 2 | . 2 . . Recyclers Shooed 2 | . 2 . . Parts Field Recycled . | . . . . Retrieved Matter . | . . . . Parts Self-Destructed 2 | . . . 2 Prevented . | . . . . Kills | -11 -10 -10 -10 ------- Run | Yrd Mat Min Sub Combat Hostiles Destroyed 14 | . 7 3 4 Guns 8 | . 7 . 1 Cannons 4 | . . 3 1 AOE 2 | . . . 2 Classes Destroyed 9 | 2 5 1 1 Builder 1 | . 1 . . Tunneler 1 | 1 . . . Hauler 2 | . 2 . . Recycler 3 | 1 2 . . Operator 1 | . 1 . . Swarmer 3 | . 3 . . Grunt 6 | . 4 2 . Sentry 1 | . . 1 . Subdweller 4 | . . . 4 Best Kill Streak 5 | 2 5 2 2 Combat Bots Only 5 | . 5 2 2 Max Kills in Single Turn 2 | 1 1 1 2 Gunslinging . | . . . . Exploded 2 | . . . 2 Melee . | . . . . Uniques/NPCs Destroyed . | . . . . Combat | -11 -10 -10 -10 -------- Run | Yrd Mat Min Sub Hostile Shots Fired 84 | . 24 8 52 Missed 18 | . 7 1 10 Hits 66 | . 17 7 42 Projectile 66 | . 17 7 42 Critical Strikes 2 | . 1 . 1 Damage Taken 1241 | . 195 100 946 Core 258 | . 15 39 204 Absorbed by Shields . | . . . . Core Remaining (%) 100 | 100 . . . Volleys Fired 64 | 6 39 5 14 Largest 2 | 1 2 2 2 Hottest 115 | 40 100 66 115 Shots Fired 118 | 6 76 10 26 Gun 94 | 6 74 . 14 Cannon 20 | . . 10 10 Launcher 2 | . . . 2 Special 2 | . 2 . . Kinetic 88 | . 68 10 10 Thermal 16 | . 2 . 14 Explosive 2 | . . . 2 Electromagnetic 12 | 6 6 . . Robot Hit Streak 11 | 1 11 8 6 Robot Miss Streak 4 | 3 4 1 2 Penetration Max . | . . . . Secondary Targets 3 | . 3 . . Max Gunslinging Chain 1 | . 1 . . Shots Hit Robots 75 | 2 45 9 19 Core Hits 37 | 2 21 4 10 Critical Kills . | . . . . Critical Parts Destroyed . | . . . . Critical Strikes 1 | . . . 1 Burn 1 | . . . 1 Melee Attacks . | . . . . Impact . | . . . . Slashing . | . . . . Piercing . | . . . . Sneak Attacks . | . . . . Combat Hostiles . | . . . . Follow-up Attacks . | . . . . Damage Inflicted 1645 | 30 705 195 715 Guns 890 | 30 705 . 155 Cannons 371 | . . 195 176 Explosions 384 | . . . 384 Melee . | . . . . Ramming . | . . . . Kinetic 1036 | . 665 195 176 Thermal 155 | . . . 155 Explosive 384 | . . . 384 Electromagnetic 70 | 30 40 . . Impact . | . . . . Slashing . | . . . . Piercing . | . . . . Highest Corruption . | . . . . Average Corruption . | . . . . Corruption Purged . | . . . . Corruption Blocked . | . . . . Overload Shots . | . . . . Overflow Damage . | . . . . Projectiles . | . . . . Explosions . | . . . . Melee . | . . . . Knockbacks . | . . . . Impact . | . . . . Kinetic . | . . . . Secondary . | . . . . Self-Inflicted Damage . | . . . . Shots . | . . . . Rammed 1 | . . 1 . Targets Rammed 1 | . . 1 . Kicked . | . . . . Crushed . | . . . . Highest Temperature 118 | . 40 72 118 Average Temperature 34 | . 15 37 50 Received Heat Transfer 372 | . 99 42 231 Siege Activations . | . . . . Martial Activations . | . . . . Shielding Activations . | . . . . Robots Disrupted . | . . . . Combat Hostiles . | . . . . Robots Corrupted . | . . . . Combat Hostiles . | . . . . Parts Fried . | . . . . Impact Corruptions . | . . . . Robots Melted . | . . . . Combat Hostiles . | . . . . Parts Melted 2 | . . . 2 Heat Transferred 481 | . . . 481 Parts Sabotaged . | . . . . Parts Stolen . | . . . . Parts Stripped . | . . . . Power Chain Reactions . | . . . . Alert | -11 -10 -10 -10 ------- Run | Yrd Mat Min Sub Maximum Alert Level . | . . . . Low Security (%) 100 | 100 100 100 . Level 1 . | . . . . Level 2 . | . . . . Level 3 . | . . . . Level 4 . | . . . . Level 5 . | . . . . High Security . | . . . . Max Security . | . . . . Peak Influence 116 | 5 116 50 . Initial . | . . . . Average 13 | 1 14 11 . Influence Increases 329 | 10 249 70 . Destroy 0b10 Robot/C 200 | . 140 60 . Destroy 0b10 Robot/NC 40 | 10 30 . . Destroy Leader 44 | . 34 10 . Successful Hack 14 | . 14 . . Disable Machine 30 | . 30 . . Destroy Structure 1 | . 1 . . Influence Decreases 329 | 10 249 70 . Time Decay 225 | 10 145 70 . Purge Threat 104 | . 104 . . Squads Dispatched 1 | . 1 . . Investigation . | . . . . Extermination . | . . . . Reinforcement 1 | . 1 . . Assault . | . . . . Garrison . | . . . . Intercept . | . . . . Searches Triggered . | . . . . Construction Impeded . | . . . . Haulers Reinforced . | . . . . Active Scanning Responses . | . . . . Cargo Convoy Interrupts . | . . . . Stealth | -11 -10 -10 -10 --------- Run | Yrd Mat Min Sub Distress Signals . | . . . . Communications Jammed . | . . . . Distress Signals . | . . . . Times Spotted 29 | . 14 3 12 Peak Tracking Total 9 | . 4 2 9 Tactical Retreats . | . . . . Traps | -11 -10 -10 -10 ------- Run | Yrd Mat Min Sub Traps Triggered . | . . . . Indirectly . | . . . . Trap Hack Attempts . | . . . . Triggered . | . . . . Disarmed . | . . . . Reprogrammed . | . . . . Reused . | . . . . Traps Extracted . | . . . . Installed . | . . . . Triggered . | . . . . Machines | -11 -10 -10 -10 ---------- Run | Yrd Mat Min Sub Machines Disabled 2 | . 2 . . Max in Single Turn 1 | . 1 . . Machines Repaired . | . . . . Machines Dismantled . | . . . . Machines Sabotaged . | . . . . Overloaded Fab Kills . | . . . . Hacking | -11 -10 -10 -10 --------- Run | Yrd Mat Min Sub Machines Accessed 6 | . 6 . . Terminals 6 | . 6 . . Fabricators . | . . . . Repair Stations . | . . . . Recycling Units . | . . . . Scanalyzers . | . . . . Garrison Access . | . . . . Total Hacks 21 | . 21 . . Successful 12 | . 12 . . Failed 9 | . 9 . . Catastrophic 1 | . 1 . . Database Lockouts . | . . . . Manual 14 | . 14 . . Terminals 21 | . 21 . . Fabricators . | . . . . Repair Stations . | . . . . Recycling Units . | . . . . Scanalyzers . | . . . . Garrison Access . | . . . . Terminal Hacks 7 | . 7 . . Record 2 | . 2 . . Branch Access Points 1 | . 1 . . Emergency Access Points 1 | . 1 . . Unreport Threat 1 | . 1 . . Locate Traps 2 | . 2 . . Fabricator Hacks . | . . . . Repair Station Hacks . | . . . . Recycling Unit Hacks . | . . . . Scanalyzer . | . . . . Garrison Access Hacks . | . . . . Unauthorized Hacks 5 | . 5 . . Terminals 5 | . 5 . . Botnet 5 | . 5 . . Fabricators . | . . . . Repair Stations . | . . . . Recycling Units . | . . . . Scanalyzers . | . . . . Garrison Access . | . . . . Data Cores Recovered . | . . . . Used . | . . . . Hacking Detections 6 | . 6 . . Full Trace Events 1 | . 1 . . Feedback Events . | . . . . Feedback Blocked . | . . . . Robot Schematics Acquired . | . . . . Robots Built . | . . . . Authchips . | . . . . Time . | . . . . Total Robot Build Rating . | . . . . Part Schematics Acquired . | . . . . Parts Built . | . . . . Authchips . | . . . . Time . | . . . . Total Part Build Rating . | . . . . Parts Repaired . | . . . . Time . | . . . . Parts Recycled . | . . . . Recycled Matter . | . . . . Retrieved Matter . | . . . . Retrieved Components . | . . . . Parts Scanalyzed . | . . . . Part Schematics Acquired . | . . . . Parts Damaged . | . . . . Bothacking | -11 -10 -10 -10 ------------ Run | Yrd Mat Min Sub Used RIF Installer . | . . . . Robots Hacked . | . . . . Non-combat . | . . . . Combat . | . . . . Robot Hacks Applied . | . . . . Relay Couplers Released . | . . . . Fabnet Peak Effective % . | . . . . Robots Rewired . | . . . . Allies Hacked . | . . . . Hacks Repelled . | . . . . Allies | -11 -10 -10 -10 -------- Run | Yrd Mat Min Sub Total Allies . | . . . . Largest Group . | . . . . Highest-Rated Group . | . . . . Highest-Rated Ally . | . . . . Total Orders . | . . . . Ally Attacks . | . . . . Total Damage . | . . . . Kills . | . . . . Allies Corrupted . | . . . . Allies Melted . | . . . . Intel | -11 -10 -10 -10 ------- Run | Yrd Mat Min Sub Active Infowar (turns) 610 | 21 589 . . Seismic 610 | 21 589 . . Robot Analysis Total . | . . . . Derelict Logs Recovered 2 | . . 1 1 Drone Launches . | . . . . Drone Recoveries . | . . . . Exploration | -11 -10 -10 -10 ------------- Run | Yrd Mat Min Sub Turns Passed 1986 | 94 1333 269 290 Spaces Moved 933 | 56 599 136 142 Core 5 | 4 . . 1 Treads 665 | . 388 136 141 Legs 263 | 52 211 . . Wheels . | . . . . Hover . | . . . . Flight . | . . . . Fastest Speed 50 | 50 120 160 100 Average Speed 148 | 115 146 160 159 Slowest Speed 240 | 120 240 160 160 Overloaded Moves . | . . . . Propulsion Burnouts . | . . . . Robots Hopped . | . . . . Potential Cave-ins . | . . . . Cave-ins Triggered . | . . . . Exploration Rate (%) 31 | 5 84 23 13 Regions Visited 3 Branch Regions 2 Pre-discovered Areas . | . . . . Known Exits Taken 2 | . 1 1 . Unknown Exits Taken 1 | 1 . . . Scrap Searched 1 | . . 1 . Spaces Dug . | . . . . Terrain Destroyed 12 | . . . 12 Melee . | . . . . Projectile . | . . . . AOE 12 | . . . 12 Terrain Rammed . | . . . . Walls Destroyed . | . . . . Machines Disabled . | . . . . Actions | -11 -10 -10 -10 --------- Run | Yrd Mat Min Sub Total 1414 | 78 978 178 180 Wait 351 | 1 303 33 14 Move 930 | 55 598 135 142 Hop . | . . . . Pick Up 24 | 9 10 2 3 Fast Attach 7 | 3 4 . . Attach 5 | 4 . . 1 Detach . | . . . . Swap 13 | . 11 . 2 Drop 19 | . 13 2 4 Fire 64 | 6 39 5 14 Melee . | . . . . Ram . | . . . . Kick . | . . . . Crush 1 | . . 1 . Escape Stasis . | . . . . Rewire . | . . . . Trap . | . . . . Miscellaneous . | . . . . Route ------- -11/Scrapyard -10/Materials (discovered 3 exits: *Mat x2 / *Min) -10/Mines -10/Subcaves History --------- Turn | Location | Event 7 | -11/Scrapyard | Discovered new exit (range 15) 95 | -11/Scrapyard | Entered Materials 311 | -10/Materials | Build established: Mutant 820 | -10/Materials | Discovered new exit (range 16) 1082 | -10/Materials | Identified exit to Mines 1198 | -10/Materials | Discovered new exit (range 9) 1210 | -10/Materials | Identified exit to Materials 1428 | -10/Materials | Entered Mines 1448 | -10/Mines | Met a Derelict bent on vengeance 1467 | -10/Mines | Joined a pair of Derelicts in attacking an 0b10 outpost 1516 | -10/Mines | Learned location of 1 exit from Materials 1643 | -10/Mines | Found a damaged Exp. Sensor Array with a note attached 1683 | -10/Mines | Discovered new exit (range 10) 1695 | -10/Mines | Identified exit to Subcaves 1697 | -10/Mines | Entered Subcaves 1698 | -10/Subcaves | Approached by a straggling Scientist 1705 | -10/Subcaves | Learned 2 Materials zone layouts 1943 | -10/Subcaves | Ambushed by swarm of Subdwellers 1943 | -10/Subcaves | Ambushed by Subdwellers from Twisted Machinery 1943 | -10/Subcaves | Ambushed by Subdwellers from Twisted Machinery 1946 | -10/Subcaves | Ambushed by Subdwellers from Twisted Machinery 1946 | -10/Subcaves | Ambushed by Subdwellers from Twisted Machinery 1978 | -10/Subcaves | Core integrity fell below 50% 1986 | -10/Subcaves | Core integrity fell below 20% 1987 | -10/Subcaves | Destroyed by J9-SUZ(R) with Subdweller Machine Gun Last Messages --------------- 01956_ CK-F6N(g) destroyed. 01962_ 2X-V43(g) destroyed. 01963_ Subatomizers dissect the Neutrino Core. 01964_ 4W-Y6Z(g) suffers critical hit (Destroy). 01964_ 4W-Y6Z(g) destroyed. 01971_ Lgt. Treads destroyed. 01971_ E1-VMW(R) suffers critical hit (Burn). 01972_ G9-OPM(R) destroyed. 01974_ Sub. Monowheel melted. 01974_ Sub. Power Source melted. 01974_ E1-VMW(R) destroyed. 01977_ Particle Gun destroyed. 01978_ Signal Interpreter destroyed. 01979_ Lgt. Treads destroyed. 01980_ Med. Laser destroyed. 01981_ Critical hit (Destroy). 01981_ Rnf. Ion Engine destroyed. 01985_ Subatomizers dissect the Neutrino Core. 01985_ VP-GDW(R) affixes Scrap Shield Fragment to Scrap Shield. Map ----- +----------------------------------------------------+ | ?????? ??## ?????## ##?# ##?????? | | ??????????????##### #### #??????? | | ?????????????## #?## #??????? | | ????????????## ##??# ### #?????? | | ????????????# ##???# ##?## #?????? | | ????????????# #????# ###???### #?????? | | ????????????## #????# ?????????##?????? | | ?????????????## #????# ????????????????? | | ??????????????## ##???# #???????????????? | | ????????????#### #???# ##??????????????? | | ???????????## ####?# #??????????????? | | ???????????# ### ## ???????????????? | | ???????????# ### ?????????????????? | | ???????????# ## # #??????????????????? | | ???????????# ### ## #???????????????????? | | ???????????## #?## #???????????????????? | | ????????????###### ###???????????????????? | | ??????????????# #?????????????????????? | | ????????????# #?????????????????????? | | ???????????# ## ####??????????????????? | | ??????????# #?#### ##?????????????????? | | ??????????# ????## #?????????????????? | | ?????????# ## ?#### #?????????????????? | | ?????????## #?## ### R % ###?????????????????? | | ??????????# ???##### =R! ! ;#???????????????????? | | ?????????? ???????## RR=@ ##????????????????????? | | ??????????????????# =%RR& ##????????????????????? | | ?????????????????# %!## #????????????????????? | | ?????????????????## [#?# #????????????????????? | | ?????????????????# # #?# ##????????????????????? | | ????????????????# ?###?????????????????????? | | ????????????????# ?????????????????????????? | | ???????????????? !% ?????????????????????????? | | ?????????????? ?????????????????????????? | | ????????????? # [ ?????????????????????????? | | ????????????? ### % ?????????????????????????? | | ????????????#####??# * ?????????????????????????? | | ???????????????????# ?????????????????????????? | | ???????????????????## ?????????????????????????? | | ?????????????????????###?????????????????????????? | | ?????????????????????????????????????????????????? | | ?????????????????????????????????????????????????? | | ?????????????????????????????????????????????????? | | ?????????????????????????????????????????????????? | | ?????????????????????????????????????????????????? | | ?????????????????????????????????????????????????? | | ?????????????????????????????????????????????????? | | ?????????????????????????????????????????????????? | | ?????????????????????????????????????????????????? | | ?????????????????????????????????????????????????? | +----------------------------------------------------+ Best States ------------- Heat Dissipation 25 Energy Generation 12 Energy Capacity 265 Matter Stores 300 Matter Capacity 300 Sight Range 16 Terrain Scan Density 10 Evasion (%) 55 Targeting Accuracy 5 Recoil Reduction 2 Item Schematics ----------------- None Robot Schematics ------------------ None Fabricated ------------ Nothing Repaired ---------- Nothing Alien Tech Used ----------------- None Achievements -------------- None Challenges ------------ None Game ------ Seed TimingProjectionLeg Manual? 0 Play Time 00:24:37 Cumulative 45.7 hours Start 2025.08.29 @ 10:58:21 End 2025.08.29 @ 11:25:00 Sessions 1 Manual Loads 0 Difficulty Rogue Special Mode None Game No. 26 Rogue 26 Adventurer 0 Explorer 0 Win Type - Total 0 Types 0/0/0/0/0/0/0/0/0/0 Lore% 35 Gallery% 35 Achievement% 33 Wizard Run 0 Options --------- Layout 1 ASCII 0 Keyboard 0 Movement Numpad Keybinds 0 Fullscreen 1 Font 24/Smallcaps Map View 50x35 Zoom Use 0% Tactical HUD 1 Map Filters NONE Filters NONE Steam 1 RUN: 02c8f8c1-56d7-4d35-880f-da57d7f1ef85